fUSD/lending_fUSD_20240725
["ID","MTS","AMOUNT","RATE_DAILY","PERIOD"]
[333110533,1721872249291,-500.0,0.00010958,2]
[333110534,1721872249302,-500.0,0.00010958,2]
[333110535,1721872249313,-500.0,0.00010958,2]
[333110536,1721872249324,-500.0,0.00010958,2]
[333110537,1721872249335,-503.27536725,0.00010958,2]
[333110538,1721872249345,-500.0,0.00010958,2]
[333110539,1721872249357,-500.0,0.00010958,2]
[333110540,1721872249367,-500.0,0.00010958,2]
[333110541,1721872249377,-500.0,0.00010958,2]
[333110542,1721872249388,-500.0,0.00010958,2]
[333110543,1721872249399,-500.0,0.00010958,2]
[333110544,1721872249409,-500.0,0.00010958,2]
[333110545,1721872249420,-504.87462917,0.00010958,2]
[333110546,1721872249430,-500.0,0.00010958,2]
[333110547,1721872249440,-500.0,0.00010958,2]
[333110548,1721872249449,-500.0,0.00010958,2]
[333110549,1721872249460,-500.0,0.00010958,2]
[333110550,1721872249471,-500.0,0.00010958,2]
[333110551,1721872249486,-500.0,0.00010958,2]
[333110552,1721872249556,-500.0,0.00010958,2]
[333110553,1721872249568,-449.38252966,0.00010958,2]
[333110554,1721872249579,-500.0,0.00010958,2]
[333110555,1721872249589,-108.69734961,0.00010958,2]
[333110556,1721872249669,-391.30265039,0.00010958,2]
[333110557,1721872249680,-500.0,0.00010958,2]
[333110558,1721872249690,-501.74399434,0.00010958,2]
[333110559,1721872249701,-500.0,0.00010958,2]
[333110560,1721872249711,-500.0,0.00010958,2]
[333110561,1721872249722,-500.0,0.00010958,2]
[333110562,1721872249737,-298.75744409,0.00010958,2]
[333110563,1721872249748,-136.65263282,0.00010958,2]
[333110564,1721872310929,151.52,8.219e-05,2]
[333110565,1721872647002,155.26638294,9.032e-05,2]
[333110566,1721872860896,151.52,8.219e-05,2]
[333110567,1721872936694,182.92301944,8.892e-05,2]
[333110568,1721872942833,159.94245739,8.315e-05,2]
[333110569,1721873018188,18816.16690521,8.315e-05,2]
[333110570,1721873029190,18816.16690521,8.315e-05,2]
[333110571,1721873138208,18816.16690521,8.315e-05,2]
[333110573,1721873231207,18816.16690521,8.315e-05,2]
[333110575,1721873342234,18816.16690521,8.315e-05,2]
[333110609,1721873432112,-155.26638294,9.071e-05,2]
[333110610,1721873432122,-166.66666666,9.282e-05,2]
[333110611,1721873432131,-1458.16522365,9.282e-05,2]
[333110612,1721873432141,-1363.97426769,9.312e-05,2]
[333110613,1721873432163,-94.19095596,9.312e-05,2]
[333110614,1721873432178,-164.0214243,9.342e-05,2]
[333110615,1721873432189,-102.03412174,9.342e-05,2]
[333110616,1721873432201,-576.74161518,9.342e-05,2]
[333110617,1721873432213,-779.38948673,9.342e-05,2]
[333110618,1721873432223,-23900.0,9.406e-05,2]
[333110619,1721873432234,-3325.11,9.798e-05,2]
[333110620,1721873432244,-2785.0692,9.8e-05,2]
[333110621,1721873432254,-600.0,9.806e-05,2]
[333110622,1721873432264,-150.0,9.888e-05,2]
[333110623,1721873432273,-150.0,9.888e-05,2]
[333110624,1721873432282,-150.0,9.888e-05,2]
[333110625,1721873432292,-150.0,9.888e-05,2]
[333110626,1721873432301,-150.49373198,9.888e-05,2]
[333110627,1721873432310,-400.0,9.942e-05,2]
[333110628,1721873432320,-150.0,9.955e-05,2]
[333110629,1721873432329,-322.66946927,9.955e-05,2]
[333110630,1721873432339,-150.0,9.956e-05,2]
[333110631,1721873432349,-15724.0,9.956e-05,2]
[333110632,1721873432359,-499.99,9.956e-05,2]
[333110633,1721873432368,-170.18,9.957e-05,2]
[333110634,1721873432377,-179.99,9.957e-05,2]
[333110635,1721873432387,-9999.99,9.961e-05,2]
[333110636,1721873432396,-150.0,0.00010025,2]
[333110637,1721873432405,-602.6,0.00010055,2]
[333110638,1721873432415,-418.29,0.00010055,2]
[333110639,1721873432424,-150.0,0.00010071,2]
[333110640,1721873432433,-18816.16690521,0.00010079,2]
[333110641,1721873432442,-150.0,0.00010094,2]
[333110642,1721873432452,-150.53611601,0.00010146,2]
[333110643,1721873432460,-150.0,0.00010162,2]
[333110644,1721873432469,-150.0,0.00010162,2]
[333110645,1721873432480,-922.82,0.00010178,2]
[333110646,1721873432489,-150.0,0.00010231,2]
[333110647,1721873432498,-420.24,0.00010241,2]
[333110648,1721873432507,-833.79,0.00010241,2]
[333110649,1721873432517,-833.79,0.00010241,2]
[333110650,1721873432526,-420.24,0.00010241,2]
[333110651,1721873432536,-150.0,0.00010254,2]
[333110652,1721873432545,-530.01,0.00010278,2]
[333110653,1721873432554,-530.01,0.00010278,2]
[333110654,1721873432563,-530.01,0.00010278,2]
[333110655,1721873432571,-530.01,0.00010278,2]
[333110656,1721873432581,-150.0,0.000103,2]
[333110657,1721873432590,-150.0,0.00010368,2]
[333110658,1721873432599,-165.31302635,0.0001037,2]
[333110659,1721873432608,-150.94,0.00010378,2]
[333110660,1721873432616,-355.75,0.00010378,2]
[333110661,1721873432626,-150.0,0.00010437,2]
[333110662,1721873432634,-150.0,0.00010437,2]
[333110663,1721873432643,-150.0,0.00010437,2]
[333110664,1721873432652,-150.0,0.00010506,2]
[333110665,1721873432661,-150.0,0.00010574,2]
[333110666,1721873432670,-150.0,0.0001062,2]
[333110667,1721873432679,-150.0,0.00010643,2]
[333110668,1721873432688,-604.64795574,0.00010653,2]
[333110669,1721873432697,-150.0,0.00010712,2]
[333110670,1721873432706,-150.0,0.00010712,2]
[333110671,1721873432715,-593.0,0.0001074,2]
[333110672,1721873432723,-2500.0,0.00010758,2]
[333110673,1721873432734,-244.92191331,0.0001078,2]
[333110674,1721873432743,-150.0,0.0001078,2]
[333110675,1721873432752,-3333.918016,0.000108,2]
[333110676,1721873432761,-150.0,0.00010803,2]
[333110677,1721873432770,-244.9219133,0.0001081,2]
[333110678,1721873432779,-244.9219133,0.0001084,2]
[333110679,1721873432788,-150.0,0.00010849,2]
[333110680,1721873432797,-42682.52563488,0.00010857,2]
[333110681,1721873432807,-5779.215,0.00010857,2]
[333110682,1721873432815,-1384.2341,0.00010858,2]
[333110683,1721873432824,-500.7884,0.00010858,2]
[333110684,1721873432834,-342.925,0.00010858,2]
[333110685,1721873432843,-1000.0,0.00010858,2]
[333110686,1721873432851,-4289.745,0.00010858,2]
[333110687,1721873432861,-283977.057,0.00010858,2]
[333110688,1721873432871,-244.9219133,0.00010869,2]
[333110689,1721873432880,-451.6,0.0001088,2]
[333110690,1721873432890,-312.522,0.0001088,2]
[333110691,1721873432899,-1254.0,0.0001088,2]
[333110692,1721873432909,-234.56,0.0001088,2]
[333110693,1721873432918,-623.113,0.0001088,2]
[333110694,1721873432928,-451.371,0.0001088,2]
[333110695,1721873432937,-500.0,0.00010885,2]
[333110696,1721873432947,-151.52,0.00010895,2]
[333110697,1721873432956,-244.9219133,0.00010899,2]
[333110698,1721873432966,-1995.93544129,0.00010899,2]
[333110699,1721873432975,-1047.57669875,0.00010899,2]
[333110700,1721873432989,-1995.93544127,0.000109,2]
[333110701,1721873432998,-1047.57669875,0.000109,2]
[333110702,1721873433008,-2000.0,0.000109,2]
[333110703,1721873433017,-426.73699505,0.000109,2]
[333110704,1721873433026,-1995.93544127,0.000109,2]
[333110705,1721873433036,-1047.57669875,0.000109,2]
[333110706,1721873433046,-150.0,0.00010918,2]
[333110707,1721873433056,-337.22140102,0.00010948,2]
[333110708,1721873433065,-255.0,0.00010951,2]
[333110709,1721873433075,-501.02963368,0.00010958,2]
[333110710,1721873433086,-243.15230845,0.00010958,2]
[333110711,1721873433095,-501.42861727,0.00010958,2]
[333110712,1721873433105,-500.0,0.00010958,2]
[333110713,1721873433115,-500.57956695,0.00010958,2]
[333110714,1721873433125,-500.0,0.00010958,2]
[333110715,1721873433134,-500.0,0.00010958,2]
[333110716,1721873433144,-503.28153706,0.00010958,2]
[333110717,1721873433154,-151.0,0.00010958,2]
[333110718,1721873433163,-500.88915615,0.00010958,2]
[333110719,1721873433174,-151.0,0.00010958,2]
[333110720,1721873433186,-151.0,0.00010958,2]
[333110721,1721873433196,-151.0,0.00010958,2]
[333110722,1721873433206,-500.79393349,0.00010958,2]
[333110723,1721873433215,-502.08491795,0.00010958,2]
[333110724,1721873433227,-501.03946143,0.00010958,2]
[333110725,1721873433238,-171.91843454,0.00010958,2]
[333110726,1721873433250,-501.49849557,0.00010958,2]
[333110727,1721873433263,-501.1767184,0.00010958,2]
[333110728,1721873433273,-861.68079157,0.00010958,2]
[333110729,1721873433283,-1048.81157426,0.00010958,2]
[333110730,1721873433293,-500.0,0.00010958,2]
[333110731,1721873433302,-500.0,0.00010958,2]
[333110732,1721873433312,-500.0,0.00010958,2]
[333110733,1721873433322,-500.0,0.00010958,2]
[333110734,1721873433332,-500.0,0.00010958,2]
[333110735,1721873433342,-221.22981586,0.00010958,2]
[333110736,1721873433352,-985.48,0.00010958,2]
[333110737,1721873433362,-985.48,0.00010958,2]
[333110738,1721873433372,-985.48,0.00010958,2]
[333110739,1721873433382,-985.48,0.00010958,2]
[333110740,1721873433392,-985.48,0.00010958,2]
[333110741,1721873433403,-500.0,0.00010958,2]
[333110742,1721873433413,-500.0,0.00010958,2]
[333110743,1721873433424,-500.0,0.00010958,2]
[333110744,1721873433434,-500.0,0.00010958,2]
[333110745,1721873433445,-500.0,0.00010958,2]
[333110746,1721873433455,-500.0,0.00010958,2]
[333110747,1721873433465,-500.0,0.00010958,2]
[333110748,1721873433474,-500.0,0.00010958,2]
[333110749,1721873433487,-500.0,0.00010958,2]
[333110750,1721873433497,-500.0,0.00010958,2]
[333110751,1721873433507,-500.0,0.00010958,2]
[333110752,1721873433517,-500.0,0.00010958,2]
[333110753,1721873433526,-500.0,0.00010958,2]
[333110754,1721873433536,-500.0,0.00010958,2]
[333110755,1721873433546,-490.36943337,0.00010958,2]
[333110756,1721873433556,-500.0,0.00010958,2]
[333110757,1721873433566,-500.0,0.00010958,2]
[333110758,1721873433576,-500.0,0.00010958,2]
[333110759,1721873433586,-500.0,0.00010958,2]
[333110760,1721873433596,-500.0,0.00010958,2]
[333110761,1721873433606,-500.0,0.00010958,2]
[333110762,1721873433616,-500.0,0.00010958,2]
[333110763,1721873433626,-500.0,0.00010958,2]
[333110764,1721873433636,-500.0,0.00010958,2]
[333110765,1721873433646,-500.0,0.00010958,2]
[333110766,1721873433655,-500.0,0.00010958,2]
[333110767,1721873433665,-500.0,0.00010958,2]
[333110768,1721873433675,-163.49038973,0.00010958,2]
[333110769,1721873433685,-500.0,0.00010958,2]
[333110770,1721873433694,-500.0,0.00010958,2]
[333110771,1721873433704,-500.0,0.00010958,2]
[333110772,1721873433714,-500.0,0.00010958,2]
[333110773,1721873433724,-500.0,0.00010958,2]
[333110774,1721873433738,-2000.0,0.00010958,2]
[333110775,1721873433748,-200.0,0.00010958,2]
[333110776,1721873433758,-500.0,0.00010958,2]
[333110777,1721873433768,-465.5,0.00010958,2]
[333110778,1721873433782,-500.0,0.00010958,2]
[333110779,1721873433791,-500.0,0.00010958,2]
[333110780,1721873433801,-500.0,0.00010958,2]
[333110781,1721873433811,-500.0,0.00010958,2]
[333110782,1721873433820,-500.0,0.00010958,2]
[333110783,1721873433830,-500.0,0.00010958,2]
[333110784,1721873433841,-500.0,0.00010958,2]
[333110785,1721873433852,-500.0,0.00010958,2]
[333110786,1721873433862,-500.0,0.00010958,2]
[333110787,1721873433872,-500.0,0.00010958,2]
[333110788,1721873433883,-500.0,0.00010958,2]
[333110789,1721873433894,-500.0,0.00010958,2]
[333110790,1721873433905,-500.0,0.00010958,2]
[333110791,1721873433915,-500.0,0.00010958,2]
[333110792,1721873433926,-246.15711046,0.00010958,2]
[333110793,1721873433936,-500.0,0.00010958,2]
[333110794,1721873433946,-500.0,0.00010958,2]
[333110795,1721873433957,-500.0,0.00010958,2]
[333110796,1721873433967,-500.0,0.00010958,2]
[333110797,1721873433977,-500.0,0.00010958,2]
[333110798,1721873433994,-500.0,0.00010958,2]
[333110799,1721873434004,-500.0,0.00010958,2]
[333110800,1721873434014,-500.0,0.00010958,2]
[333110801,1721873434025,-500.0,0.00010958,2]
[333110802,1721873434035,-500.0,0.00010958,2]
[333110803,1721873434046,-557.01,0.00010958,2]
[333110804,1721873434056,-557.01,0.00010958,2]
[333110805,1721873434066,-557.01,0.00010958,2]
[333110806,1721873434076,-557.01,0.00010958,2]
[333110807,1721873434086,-557.01,0.00010958,2]
[333110808,1721873434096,-500.0,0.00010958,2]
[333110809,1721873434106,-500.0,0.00010958,2]
[333110810,1721873434116,-500.0,0.00010958,2]
[333110811,1721873434126,-500.0,0.00010958,2]
[333110812,1721873434135,-500.0,0.00010958,2]
[333110813,1721873434145,-591.79050949,0.00010958,2]
[333110814,1721873434155,-500.0,0.00010958,2]
[333110815,1721873434165,-500.0,0.00010958,2]
[333110816,1721873434177,-500.0,0.00010958,2]
[333110817,1721873434187,-500.0,0.00010958,2]
[333110818,1721873434198,-500.0,0.00010958,2]
[333110819,1721873434208,-500.0,0.00010958,2]
[333110820,1721873434218,-500.0,0.00010958,2]
[333110821,1721873434227,-500.0,0.00010958,2]
[333110822,1721873434241,-500.0,0.00010958,2]
[333110823,1721873434251,-500.0,0.00010958,2]
[333110824,1721873434261,-500.0,0.00010958,2]
[333110825,1721873434271,-500.0,0.00010958,2]
[333110826,1721873434281,-500.0,0.00010958,2]
[333110827,1721873434292,-500.0,0.00010958,2]
[333110828,1721873434302,-500.0,0.00010958,2]
[333110829,1721873434312,-787.65,0.00010958,2]
[333110830,1721873434322,-787.65,0.00010958,2]
[333110831,1721873434332,-787.65,0.00010958,2]
[333110832,1721873434342,-787.65,0.00010958,2]
[333110833,1721873434351,-787.65,0.00010958,2]
[333110834,1721873434361,-500.0,0.00010958,2]
[333110835,1721873434371,-500.0,0.00010958,2]
[333110836,1721873434381,-500.0,0.00010958,2]
[333110837,1721873434390,-500.0,0.00010958,2]
[333110838,1721873434399,-500.0,0.00010958,2]
[333110839,1721873434407,-500.0,0.00010958,2]
[333110840,1721873434417,-500.0,0.00010958,2]
[333110841,1721873434427,-500.0,0.00010958,2]
[333110842,1721873434436,-500.0,0.00010958,2]
[333110843,1721873434446,-500.0,0.00010958,2]
[333110844,1721873434455,-500.0,0.00010958,2]
[333110845,1721873434465,-500.0,0.00010958,2]
[333110846,1721873434475,-500.0,0.00010958,2]
[333110847,1721873434487,-500.0,0.00010958,2]
[333110848,1721873434497,-500.0,0.00010958,2]
[333110849,1721873434506,-500.0,0.00010958,2]
[333110850,1721873434516,-500.0,0.00010958,2]
[333110851,1721873434526,-500.0,0.00010958,2]
[333110852,1721873434536,-500.0,0.00010958,2]
[333110853,1721873434546,-500.0,0.00010958,2]
[333110854,1721873434557,-868.98,0.00010958,2]
[333110855,1721873434567,-868.98,0.00010958,2]
[333110856,1721873434578,-868.98,0.00010958,2]
[333110857,1721873434589,-868.98,0.00010958,2]
[333110858,1721873434599,-868.98,0.00010958,2]
[333110859,1721873434609,-501.17724942,0.00010958,2]
[333110860,1721873434619,-500.0,0.00010958,2]
[333110861,1721873434629,-500.0,0.00010958,2]
[333110862,1721873434638,-500.0,0.00010958,2]
[333110863,1721873434648,-500.0,0.00010958,2]
[333110864,1721873434658,-500.0,0.00010958,2]
[333110865,1721873434669,-151.4292071,0.00010958,2]
[333110866,1721873434679,-500.0,0.00010958,2]
[333110867,1721873434689,-568.56,0.00010958,2]
[333110868,1721873434700,-568.56,0.00010958,2]
[333110869,1721873434710,-568.56,0.00010958,2]
[333110870,1721873434720,-568.56,0.00010958,2]
[333110871,1721873434733,-568.56,0.00010958,2]
[333110872,1721873434746,-500.0,0.00010958,2]
[333110873,1721873434757,-500.0,0.00010958,2]
[333110874,1721873434770,-500.0,0.00010958,2]
[333110875,1721873434781,-500.0,0.00010958,2]
[333110876,1721873434792,-500.0,0.00010958,2]
[333110877,1721873434803,-500.0,0.00010958,2]
[333110878,1721873434814,-500.0,0.00010958,2]
[333110879,1721873434824,-500.0,0.00010958,2]
[333110880,1721873434835,-500.0,0.00010958,2]
[333110881,1721873434845,-500.0,0.00010958,2]
[333110882,1721873434855,-500.0,0.00010958,2]
[333110883,1721873434866,-500.0,0.00010958,2]
[333110884,1721873434876,-500.0,0.00010958,2]
[333110885,1721873434886,-500.0,0.00010958,2]
[333110886,1721873434896,-525.04154939,0.00010958,2]
[333110887,1721873434906,-500.0,0.00010958,2]
[333110888,1721873434915,-500.0,0.00010958,2]
[333110889,1721873434925,-500.0,0.00010958,2]
[333110890,1721873434934,-500.0,0.00010958,2]
[333110891,1721873434944,-500.0,0.00010958,2]
[333110892,1721873434953,-500.0,0.00010958,2]
[333110893,1721873434962,-500.0,0.00010958,2]
[333110894,1721873434972,-500.0,0.00010958,2]
[333110895,1721873434986,-500.0,0.00010958,2]
[333110896,1721873434995,-500.0,0.00010958,2]
[333110897,1721873435005,-500.0,0.00010958,2]
[333110898,1721873435014,-500.0,0.00010958,2]
[333110899,1721873435024,-2000.0,0.00010958,2]
[333110900,1721873435209,-500.0,0.00010958,2]
[333110901,1721873435219,-500.0,0.00010958,2]
[333110902,1721873435230,-500.0,0.00010958,2]
[333110903,1721873435241,-200.0,0.00010958,2]
[333110904,1721873435251,-511.4067282,0.00010958,2]
[333110905,1721873435262,-500.0,0.00010958,2]
[333110906,1721873435271,-500.0,0.00010958,2]
[333110907,1721873435281,-274.49252177,0.00010958,2]
[333110908,1721873435290,-500.0,0.00010958,2]
[333110909,1721873435300,-500.0,0.00010958,2]
[333110910,1721873435310,-500.0,0.00010958,2]
[333110911,1721873435319,-500.0,0.00010958,2]
[333110912,1721873435328,-510.31310887,0.00010958,2]
[333110913,1721873435338,-390.85720905,0.00010958,2]
[333110914,1721873435347,-500.0,0.00010958,2]
[333110915,1721873435356,-500.0,0.00010958,2]
[333110916,1721873435365,-510.8963239,0.00010958,2]
[333110917,1721873435375,-500.0,0.00010958,2]
[333110918,1721873435384,-226.84176496,0.00010958,2]
[333110919,1721873435394,-500.0,0.00010958,2]
[333110920,1721873435403,-500.0,0.00010958,2]
[333110921,1721873435412,-500.0,0.00010958,2]
[333110922,1721873435422,-500.0,0.00010958,2]
[333110923,1721873435431,-500.0,0.00010958,2]
[333110924,1721873435440,-500.0,0.00010958,2]
[333110925,1721873435453,-500.0,0.00010958,2]
[333110926,1721873435463,-500.0,0.00010958,2]
[333110927,1721873435472,-500.0,0.00010958,2]
[333110928,1721873435484,-550.71096842,0.00010958,2]
[333110929,1721873435493,-500.0,0.00010958,2]
[333110930,1721873435503,-500.0,0.00010958,2]
[333110931,1721873435513,-500.0,0.00010958,2]
[333110932,1721873435522,-500.0,0.00010958,2]
[333110933,1721873435532,-500.0,0.00010958,2]
[333110934,1721873435541,-500.0,0.00010958,2]
[333110935,1721873435551,-509.04,0.00010958,2]
[333110936,1721873435561,-500.0,0.00010958,2]
[333110937,1721873435569,-500.0,0.00010958,2]
[333110938,1721873435579,-503.388656,0.00010958,2]
[333110939,1721873435588,-504.12949559,0.00010958,2]
[333110940,1721873435597,-501.98441127,0.00010958,2]
[333110941,1721873435607,-503.96949935,0.00010958,2]
[333110942,1721873435616,-502.10759222,0.00010958,2]
[333110943,1721873435626,-500.0,0.00010958,2]
[333110944,1721873435635,-306.8086668,0.00010958,2]
[333110945,1721873435645,-500.0,0.00010958,2]
[333110946,1721873435654,-500.0,0.00010958,2]
[333110947,1721873435664,-500.0,0.00010958,2]
[333110948,1721873435673,-381.0796033,0.00010958,2]
[333110949,1721873435682,-500.0,0.00010958,2]
[333110950,1721873435691,-433.3771299,0.00010958,2]
[333110951,1721873435701,-580.85659605,0.00010958,2]
[333110952,1721873435710,-469.45678874,0.00010958,2]
[333110953,1721873435719,-509.73799558,0.00010958,2]
[333110954,1721873435728,-503.05457182,0.00010958,2]
[333110955,1721873435742,-502.67973917,0.00010958,2]
[333110956,1721873435751,-500.0,0.00010958,2]
[333110957,1721873435760,-508.46011927,0.00010958,2]
[333110958,1721873435769,-556.37708822,0.00010958,2]
[333110959,1721873435778,-504.31862331,0.00010958,2]
[333110960,1721873435787,-500.0,0.00010958,2]
[333110961,1721873435797,-191.35828021,0.00010958,2]
[333110962,1721873435806,-501.39650559,0.00010958,2]
[333110963,1721873435815,-501.54547617,0.00010958,2]
[333110964,1721873435824,-500.0,0.00010958,2]
[333110965,1721873435834,-500.0,0.00010958,2]
[333110966,1721873435843,-502.25185987,0.00010958,2]
[333110967,1721873435852,-624.26972376,0.00010958,2]
[333110968,1721873435861,-500.0,0.00010958,2]
[333110969,1721873435871,-506.33759953,0.00010958,2]
[333110970,1721873435880,-500.0,0.00010958,2]
[333110971,1721873435889,-649.38805948,0.00010958,2]
[333110972,1721873435899,-500.99096709,0.00010958,2]
[333110973,1721873435909,-500.70626982,0.00010958,2]
[333110974,1721873435918,-500.0,0.00010958,2]
[333110975,1721873435927,-500.0,0.00010958,2]
[333110976,1721873435936,-302.53814216,0.00010958,2]
[333110977,1721873435946,-502.46967598,0.00010958,2]
[333110978,1721873435955,-507.85145115,0.00010958,2]
[333110979,1721873435964,-503.68260724,0.00010958,2]
[333110980,1721873435975,-504.64839709,0.00010958,2]
[333110981,1721873435987,-504.87417923,0.00010958,2]
[333110982,1721873435996,-500.0,0.00010958,2]
[333110983,1721873436006,-466.47258778,0.00010958,2]
[333110984,1721873436015,-520.05946725,0.00010958,2]
[333110985,1721873436024,-502.66503531,0.00010958,2]
[333110986,1721873436034,-500.0,0.00010958,2]
[333110987,1721873436043,-233.85078236,0.00010958,2]
[333110988,1721873436053,-228.24740371,0.00010958,2]
[333110989,1721873436062,-504.81696144,0.00010958,2]
[333110990,1721873436071,-600.21,0.00010958,2]
[333110991,1721873436081,-600.21,0.00010958,2]
[333110992,1721873436091,-500.48363528,0.00010958,2]
[333110993,1721873436100,-500.0,0.00010958,2]
[333110994,1721873436109,-771.48,0.00010958,2]
[333110995,1721873436118,-423.99509018,0.00010958,2]
[333110996,1721873436128,-771.48,0.00010958,2]
[333110997,1721873436137,-1255.98,0.00010958,2]
[333110998,1721873436146,-1255.98,0.00010958,2]
[333110999,1721873436156,-503.46519214,0.00010958,2]
[333111000,1721873436165,-503.70303603,0.00010958,2]
[333111001,1721873436175,-500.0,0.00010958,2]
[333111002,1721873436188,-503.83148273,0.00010958,2]
[333111003,1721873436197,-500.0,0.00010958,2]
[333111004,1721873436207,-587.87,0.00010958,2]
[333111005,1721873436216,-587.87,0.00010958,2]
[333111006,1721873436225,-502.19828236,0.00010958,2]
[333111007,1721873436237,-169.472953,0.00010958,2]
[333111008,1721873436246,-500.0,0.00010958,2]
[333111009,1721873436256,-500.0,0.00010958,2]
[333111010,1721873436265,-500.0,0.00010958,2]
[333111011,1721873436275,-500.0,0.00010958,2]
[333111012,1721873436285,-365.2,0.00010958,2]
[333111013,1721873436294,-500.0,0.00010958,2]
[333111014,1721873436303,-368.34457667,0.00010958,2]
[333111015,1721873436312,-1102.92,0.00010958,2]
[333111016,1721873436322,-1102.92,0.00010958,2]
[333111017,1721873436331,-500.0,0.00010958,2]
[333111018,1721873436340,-500.0,0.00010958,2]
[333111019,1721873436349,-514.60698619,0.00010958,2]
[333111020,1721873436359,-62.99739327,0.00010958,2]
[333111021,1721873436701,-492.13260673,0.00010958,2]
[333111022,1721873436711,-198.07335119,0.00010958,2]
[333111023,1721873436720,-555.13,0.00010958,2]
[333111024,1721873436730,-500.0,0.00010958,2]
[333111025,1721873436742,-507.82947151,0.00010958,2]
[333111026,1721873436753,-344.52897057,0.00010958,2]
[333111027,1721873436765,-246.87278942,0.00010958,2]
[333111028,1721873436777,-704.56,0.00010958,2]
[333111029,1721873436786,-704.56,0.00010958,2]
[333111030,1721873436795,-503.02111015,0.00010958,2]
[333111031,1721873436805,-500.0,0.00010958,2]
[333111032,1721873436815,-500.0,0.00010958,2]
[333111033,1721873436824,-500.0,0.00010958,2]
[333111034,1721873436834,-500.0,0.00010958,2]
[333111035,1721873436843,-725.57,0.00010958,2]
[333111036,1721873436853,-725.57,0.00010958,2]
[333111037,1721873436863,-405.49540382,0.00010958,2]
[333111038,1721873436872,-500.0,0.00010958,2]
[333111039,1721873436882,-500.0,0.00010958,2]
[333111040,1721873436892,-493.06960565,0.00010958,2]
[333111042,1721873437736,-1076.29039435,0.00010958,2]
[333111043,1721873437746,-1569.36,0.00010958,2]
[333111044,1721873437756,-500.0,0.00010958,2]
[333111045,1721873437766,-500.0,0.00010958,2]
[333111046,1721873437776,-500.0,0.00010958,2]
[333111047,1721873437786,-500.0,0.00010958,2]
[333111048,1721873437796,-638.17867229,0.00010958,2]
[333111049,1721873437806,-1027.67,0.00010958,2]
[333111050,1721873437815,-1027.67,0.00010958,2]
[333111051,1721873437825,-1019.3,0.00010958,2]
[333111052,1721873437834,-1019.3,0.00010958,2]
[333111053,1721873437844,-500.0,0.00010958,2]
[333111054,1721873437853,-500.0,0.00010958,2]
[333111055,1721873437862,-500.0,0.00010958,2]
[333111056,1721873437871,-500.0,0.00010958,2]
[333111057,1721873437881,-500.0,0.00010958,2]
[333111058,1721873437891,-500.0,0.00010958,2]
[333111059,1721873437900,-500.0,0.00010958,2]
[333111060,1721873437909,-500.0,0.00010958,2]
[333111061,1721873437919,-500.0,0.00010958,2]
[333111062,1721873437928,-500.0,0.00010958,2]
[333111063,1721873437937,-628.94016011,0.00010958,2]
[333111064,1721873437947,-529.69307766,0.00010958,2]
[333111065,1721873437956,-500.0,0.00010958,2]
[333111066,1721873437966,-500.0,0.00010958,2]
[333111067,1721873437975,-287.86262959,0.00010958,2]
[333111068,1721873437993,-225.47737041,0.00010958,2]